fUSD/lending_fUSD_20260528
["ID","MTS","AMOUNT","RATE_DAILY","PERIOD"]
[423171034,1779901840000,-335.2305698,0.00025,2]
[423171009,1779901840000,-150.99,0.00024174,2]
[423171014,1779901840000,-4115.18,0.00024174,5]
[423170984,1779901840000,-212.0,0.00024,2]
[423170982,1779901840000,-531.0,0.00024,2]
[423170987,1779901840000,-352.0,0.00024,2]
[423170989,1779901840000,-1222.0,0.00024,2]
[423170999,1779901840000,-51015.23,0.00024174,2]
[423170998,1779901840000,-1466.84,0.00024174,2]
[423170990,1779901840000,-245.0,0.00024,2]
[423170988,1779901840000,-313.0,0.00024,2]
[423170992,1779901840000,-372.0,0.00024,2]
[423170993,1779901840000,-77183.08578734,0.00024074,2]
[423170994,1779901840000,-63781.41352502,0.00024074,2]
[423170983,1779901840000,-183.0,0.00024,2]
[423170996,1779901840000,-1407.64099139,0.000241,2]
[423170997,1779901840000,-1545.9448655,0.000241,2]
[423171007,1779901840000,-2132.43,0.00024174,2]
[423171006,1779901840000,-14184.25,0.00024174,2]
[423171004,1779901840000,-3016.09,0.00024174,2]
[423171013,1779901840000,-73881.12,0.00024174,2]
[423171012,1779901840000,-9999.99,0.00024174,2]
[423171005,1779901840000,-9999.99,0.00024174,2]
[423171002,1779901840000,-5601.76,0.00024174,2]
[423171001,1779901840000,-3746.13,0.00024174,2]
[423170995,1779901840000,-694.89044229,0.000241,2]
[423171003,1779901840000,-134522.98,0.00024174,2]
[423171010,1779901840000,-499.99,0.00024174,2]
[423171065,1779901841000,-2212.04,0.00027112,7]
[423171075,1779901841000,-5947.24,0.000274,14]
[423171066,1779901841000,-1500.72500388,0.00027397,2]
[423171069,1779901841000,-281.31,0.00027397,2]
[423171068,1779901841000,-300.0,0.00027397,2]
[423171070,1779901841000,-1467.38,0.00027397,2]
[423171071,1779901841000,-10002.85,0.00027397,10]
[423171072,1779901841000,-19074.76,0.00027397,10]
[423171074,1779901841000,-163.81,0.000274,7]
[423171081,1779901841000,-350.28,0.00027681,30]
[423171073,1779901841000,-15895.63,0.00027397,10]
[423171078,1779901841000,-1064.76,0.0002752,7]
[423171077,1779901841000,-657.08,0.0002752,7]
[423171084,1779901841000,-2791.29,0.00027691,2]
[423171079,1779901841000,-616.37,0.0002752,30]
[423171080,1779901841000,-150.0,0.00027521,2]
[423171083,1779901841000,-261.08,0.00027684,2]
[423171085,1779901841000,-263.84,0.00027696,2]
[423171062,1779901841000,-1373.3,0.00026296,2]
[423171076,1779901841000,-629.59,0.0002752,7]
[423171064,1779901841000,-400.0,0.000269,9]
[423171051,1779901841000,-293.75,0.00025786,2]
[423171063,1779901841000,-20679.63668616,0.00026629,2]
[423171049,1779901841000,-352.97,0.000251,7]
[423171041,1779901841000,-326.56855013,0.00025,2]
[423171043,1779901841000,-254.54272136,0.00025,2]
[423171042,1779901841000,-1229.98581358,0.00025,2]
[423171048,1779901841000,-171.19,0.00025,2]
[423171045,1779901841000,-171.19,0.00025,2]
[423171044,1779901841000,-384.58968581,0.00025,2]
[423171046,1779901841000,-171.19,0.00025,2]
[423171047,1779901841000,-171.19,0.00025,2]
[423171067,1779901841000,-1500.0,0.00027397,2]
[423171052,1779901841000,-1365.49,0.00025786,2]
[423171059,1779901841000,-550.0,0.00026,2]
[423171053,1779901841000,-1466.84,0.00025786,2]
[423171055,1779901841000,-266.05748578,0.00025902,2]
[423171056,1779901841000,-4178.07912236,0.0002591,2]
[423171054,1779901841000,-51015.23,0.00025786,2]
[423171057,1779901841000,-1219.63090047,0.00025967,2]
[423171058,1779901841000,-500.0,0.00026,2]
[423171061,1779901841000,-940.18848869,0.00026133,2]
[423171060,1779901841000,-501.4576724,0.00026111,2]
[423171050,1779901841000,-2212.04,0.00025334,7]
[423171087,1779901841000,-159.54,0.00027778,30]
[423171082,1779901841000,-5684.03156706,0.00027681,28]
[423171089,1779901841000,-350.28,0.00027827,7]
[423171115,1779901841000,-258.08,0.00028595,30]
[423171116,1779901841000,-350.28,0.00028706,7]
[423171118,1779901841000,-350.28,0.00028853,2]
[423171119,1779901841000,-150.0,0.00028855,2]
[423171117,1779901841000,-258.08,0.0002873,7]
[423171120,1779901841000,-150.0,0.00028855,2]
[423171121,1779901841000,-150.0,0.00028855,2]
[423171114,1779901841000,-173.80308047,0.00028564,2]
[423171123,1779901841000,-150.0,0.00028855,2]
[423171113,1779901841000,-350.28,0.0002856,30]
[423171122,1779901841000,-150.0,0.00028855,2]
[423171125,1779901841000,-150.0,0.00028855,2]
[423171126,1779901841000,-150.0,0.00028855,2]
[423171128,1779901841000,-150.0,0.00028855,2]
[423171130,1779901841000,-150.0,0.00028855,2]
[423171129,1779901841000,-150.0,0.00028855,2]
[423171127,1779901841000,-150.0,0.00028855,2]
[423171132,1779901841000,-150.0,0.00028855,2]
[423171131,1779901841000,-150.0,0.00028855,2]
[423171086,1779901841000,-159.54,0.00027759,30]
[423171133,1779901841000,-258.08,0.00028865,2]
[423171105,1779901841000,-610.7,0.00028346,7]
[423171124,1779901841000,-150.0,0.00028855,2]
[423171112,1779901841000,-152.0,0.00028492,7]
[423171090,1779901841000,-258.08,0.0002792,7]
[423171111,1779901841000,-258.08,0.0002846,2]
[423171088,1779901841000,-258.08,0.00027785,30]
[423171091,1779901841000,-350.28,0.00027974,2]
[423171093,1779901841000,-215.46156935,0.00028,7]
[423171092,1779901841000,-600.0,0.00028,2]
[423171096,1779901841000,-159.54,0.00028083,7]
[423171100,1779901841000,-350.28,0.0002812,30]
[423171095,1779901841000,-159.54,0.00028069,7]
[423171101,1779901841000,-258.08,0.0002819,30]
[423171094,1779901841000,-258.08,0.00028055,2]
[423171102,1779901841000,-350.28,0.00028267,7]
[423171099,1779901841000,-959.0,0.000281,7]
[423171097,1779901841000,-159.55,0.00028097,7]
[423171104,1779901841000,-258.08,0.00028325,7]
[423171103,1779901841000,-1373.3,0.00028267,2]
[423171107,1779901841000,-1032.82,0.00028346,7]
[423171106,1779901841000,-637.37,0.00028346,7]
[423171109,1779901841000,-152.0,0.00028449,7]
[423171098,1779901841000,-352.97,0.000281,7]
[423171110,1779901841000,-152.0,0.00028449,7]
[423171108,1779901841000,-350.28,0.00028413,2]
[423171178,1779901842000,-212.0,0.00029803,30]
[423171172,1779901842000,-372.0,0.0002978,30]
[423171173,1779901842000,-194.0,0.0002978,30]
[423171166,1779901842000,-338.80384325,0.000295,2]
[423171168,1779901842000,-338.80384322,0.000295,2]
[423171162,1779901842000,-1000.88,0.00029172,7]
[423171167,1779901842000,-338.80384322,0.000295,2]
[423171164,1779901842000,-737.03285282,0.0002931,2]
[423171163,1779901842000,-5947.24,0.000292,14]
[423171179,1779901842000,-498.0,0.00029803,30]
[423171170,1779901842000,-245.0,0.00029774,30]
[423171165,1779901842000,-276.33739122,0.000295,2]
[423171182,1779901842000,-313.0,0.00029803,30]
[423171195,1779901842000,-347.60616094,0.00029901,2]
[423171176,1779901842000,-531.0,0.00029802,30]
[423171181,1779901842000,-352.0,0.00029803,30]
[423171183,1779901842000,-1222.0,0.00029803,30]
[423171175,1779901842000,-316.0,0.00029802,30]
[423171177,1779901842000,-183.0,0.00029803,30]
[423171186,1779901842000,-150.0,0.00029815,2]
[423171184,1779901842000,-226.0,0.00029803,30]
[423171187,1779901842000,-150.0,0.00029815,2]
[423171185,1779901842000,-150.0,0.00029815,2]
[423171194,1779901842000,-188.64555151,0.00029901,7]
[423171189,1779901842000,-150.0,0.00029815,2]
[423171171,1779901842000,-159.0,0.00029774,30]
[423171174,1779901842000,-324.0,0.00029802,30]
[423171169,1779901842000,-1000.0,0.000297,7]
[423171146,1779901842000,-183.78,0.00029,2]
[423171161,1779901842000,-617.66,0.00029172,7]
[423171193,1779901842000,-210.4189557,0.00029901,5]
[423171134,1779901842000,-150.0,0.00028897,2]
[423171135,1779901842000,-167.16450667,0.00028971,2]
[423171144,1779901842000,-350.29,0.00029,30]
[423171143,1779901842000,-345.05,0.00029,2]
[423171136,1779901842000,-200.0,0.00029,2]
[423171145,1779901842000,-258.16,0.00029,30]
[423171137,1779901842000,-200.0,0.00029,2]
[423171138,1779901842000,-200.0,0.00029,2]
[423171141,1779901842000,-200.0,0.00029,2]
[423171139,1779901842000,-200.0,0.00029,2]
[423171140,1779901842000,-200.0,0.00029,2]
[423171160,1779901842000,-152.0,0.00029059,120]
[423171142,1779901842000,-200.0,0.00029,2]
[423171158,1779901842000,-1399.99,0.00029,2]
[423171151,1779901842000,-201.0,0.00029,2]
[423171150,1779901842000,-182.89,0.00029,2]
[423171147,1779901842000,-959.0,0.00029,7]
[423171152,1779901842000,-2212.04,0.00029,7]
[423171149,1779901842000,-182.9,0.00029,2]
[423171159,1779901842000,-200.0,0.00029054,30]
[423171153,1779901842000,-177.52,0.00029,2]
[423171154,1779901842000,-177.53,0.00029,2]
[423171157,1779901842000,-700.17793226,0.00029,2]
[423171155,1779901842000,-177.52,0.00029,2]
[423171156,1779901842000,-198.9649095,0.00029,2]
[423171148,1779901842000,-959.0,0.00029,7]
[423171192,1779901842000,-163.81,0.000299,7]
[423171253,1779901842000,-313.0,0.00030803,30]
[423171188,1779901842000,-150.0,0.00029815,2]
[423171219,1779901842000,-150.0,0.00030578,2]
[423171221,1779901842000,-150.0,0.00030578,2]
[423171228,1779901842000,-2212.04,0.00030669,7]
[423171224,1779901842000,-152.0,0.00030606,30]
[423171226,1779901842000,-286.0,0.00030606,30]
[423171236,1779901842000,-194.0,0.0003078,30]
[423171238,1779901842000,-420.83791139,0.00030792,5]
[423171240,1779901842000,-242.08103259,0.00030792,5]
[423171245,1779901842000,-343.51518012,0.00030792,2]
[423171246,1779901842000,-324.0,0.00030802,30]
[423171249,1779901842000,-183.0,0.00030803,30]
[423171242,1779901842000,-377.29110303,0.00030792,7]
[423171223,1779901842000,-245.0,0.00030578,2]
[423171247,1779901842000,-316.0,0.00030802,30]
[423171250,1779901842000,-212.0,0.00030803,30]
[423171248,1779901842000,-531.0,0.00030802,30]
[423171252,1779901842000,-352.0,0.00030803,30]
[423171251,1779901842000,-498.0,0.00030803,30]
[423171260,1779901842000,-184.8778881,0.00031329,2]
[423171259,1779901842000,-154.1402235,0.00031329,7]
[423171256,1779901842000,-150.0,0.00030914,30]
[423171258,1779901842000,-345.19,0.00031096,2]
[423171255,1779901842000,-245.80659135,0.00030914,30]
[423171254,1779901842000,-1222.0,0.00030803,30]
[423171257,1779901842000,-200.0,0.00031096,2]
[423171190,1779901842000,-157.0,0.00029815,2]
[423171244,1779901842000,-478.42918338,0.00030792,7]
[423171230,1779901842000,-382.31464193,0.00030746,7]
[423171243,1779901842000,-521.40924141,0.00030792,2]
[423171234,1779901842000,-372.0,0.0003078,30]
[423171231,1779901842000,-245.0,0.00030774,30]
[423171197,1779901842000,-171.75759006,0.00029901,2]
[423171196,1779901842000,-239.21459169,0.00029901,7]
[423171198,1779901842000,-200.0,0.0003,2]
[423171203,1779901842000,-2000.0,0.0003,7]
[423171202,1779901842000,-1768.85376,0.0003,120]
[423171201,1779901842000,-200.0,0.0003,2]
[423171199,1779901842000,-200.0,0.0003,2]
[423171200,1779901842000,-650.0,0.0003,2]
[423171204,1779901842000,-281.31,0.00030137,2]
[423171205,1779901842000,-200.0,0.00030137,2]
[423171206,1779901842000,-200.0,0.00030137,40]
[423171210,1779901842000,-150.0,0.00030341,2]
[423171191,1779901842000,-191.15732096,0.00029856,7]
[423171211,1779901842000,-20679.63668616,0.00030386,2]
[423171209,1779901842000,-968.93,0.00030272,7]
[423171220,1779901842000,-150.0,0.00030578,2]
[423171215,1779901842000,-1219.63090047,0.0003048,2]
[423171218,1779901842000,-150.0,0.00030578,2]
[423171216,1779901842000,-150.0,0.00030578,2]
[423171213,1779901842000,-199.96,0.00030411,120]
[423171232,1779901842000,-163.8451399,0.00030774,30]
[423171214,1779901842000,-3487.0,0.00030464,5]
[423171217,1779901842000,-150.0,0.00030578,2]
[423171212,1779901842000,-352.97,0.000304,7]
[423171207,1779901842000,-255.706112,0.00030137,2]
[423171208,1779901842000,-1373.3,0.00030239,2]
[423171311,1779901843000,-180.73259399,0.00032,120]
[423171300,1779901843000,-177.15756749,0.00032,120]
[423171301,1779901843000,-223.4879805,0.00032,120]
[423171299,1779901843000,-188.97933496,0.00032,120]
[423171298,1779901843000,-282.02695724,0.00032,120]
[423171294,1779901843000,-945.96681288,0.00032,120]
[423171292,1779901843000,-167.31995719,0.00032,120]
[423171296,1779901843000,-200.79846749,0.00032,120]
[423171293,1779901843000,-237.74569267,0.00032,120]
[423171297,1779901843000,-213.22249227,0.00032,120]
[423171307,1779901843000,-204.70115116,0.00032,120]
[423171295,1779901843000,-179.82120625,0.00032,120]
[423171308,1779901843000,-178.17649556,0.00032,120]
[423171305,1779901843000,-185.88478102,0.00032,120]
[423171303,1779901843000,-283.91208686,0.00032,120]
[423171310,1779901843000,-205.77743576,0.00032,120]
[423171302,1779901843000,-174.91040486,0.00032,120]
[423171309,1779901843000,-207.28396013,0.00032,120]
[423171306,1779901843000,-198.52157595,0.00032,120]
[423171312,1779901843000,-200.6361202,0.00032,120]
[423171314,1779901843000,-200.0,0.00032055,2]
[423171322,1779901843000,-215.14439636,0.00032349,2]
[423171319,1779901843000,-215.14439636,0.00032349,2]
[423171316,1779901843000,-629.2,0.00032062,120]
[423171320,1779901843000,-215.14439636,0.00032349,2]
[423171291,1779901843000,-1804.09849183,0.00032,120]
[423171304,1779901843000,-228.59045342,0.00032,120]
[423171290,1779901843000,-874.71067795,0.00032,120]
[423171262,1779901843000,-573.47196289,0.00031339,7]
[423171289,1779901843000,-208.97895572,0.0003199,10]
[423171323,1779901843000,-215.14439636,0.00032349,2]
[423171261,1779901843000,-227.07116316,0.00031339,7]
[423171264,1779901843000,-484.16206517,0.00031386,5]
[423171266,1779901843000,-565.93665454,0.00031386,7]
[423171263,1779901843000,-631.25686709,0.00031386,5]
[423171274,1779901843000,-250.0,0.00031647,7]
[423171270,1779901843000,-717.64377506,0.00031386,7]
[423171268,1779901843000,-695.21232188,0.00031386,2]
[423171265,1779901843000,-236.60698335,0.00031386,7]
[423171273,1779901843000,-167.16450667,0.00031578,2]
[423171271,1779901843000,-155.207636,0.00031386,7]
[423171267,1779901843000,-233.43335116,0.00031386,7]
[423171269,1779901843000,-213.13909119,0.00031386,7]
[423171272,1779901843000,-515.27277018,0.00031386,2]
[423171275,1779901843000,-245.0,0.00031774,30]
[423171279,1779901843000,-316.0,0.00031802,30]
[423171285,1779901843000,-313.0,0.00031803,30]
[423171283,1779901843000,-498.0,0.00031803,30]
[423171280,1779901843000,-531.0,0.00031802,30]
[423171287,1779901843000,-150.0,0.00031858,2]
[423171277,1779901843000,-194.0,0.0003178,30]
[423171278,1779901843000,-324.0,0.00031802,30]
[423171282,1779901843000,-212.0,0.00031803,30]
[423171276,1779901843000,-372.0,0.0003178,30]
[423171286,1779901843000,-1222.0,0.00031803,30]
[423171284,1779901843000,-352.0,0.00031803,30]
[423171281,1779901843000,-183.0,0.00031803,30]
[423171288,1779901843000,-5947.24,0.000319,14]
[423171313,1779901843000,-700.0,0.00032,2]
[423171321,1779901843000,-215.14439636,0.00032349,2]
[423171315,1779901843000,-180.0,0.00032056,8]
[423171356,1779901843000,-198.52157595,0.00033,120]
[423171352,1779901843000,-282.02695724,0.00033,120]
[423171354,1779901843000,-283.91208686,0.00033,120]
[423171357,1779901843000,-207.28396013,0.00033,120]
[423171355,1779901843000,-185.88478102,0.00033,120]
[423171353,1779901843000,-174.91040486,0.00033,120]
[423171360,1779901843000,-200.6361202,0.00033,120]
[423171373,1779901843000,-316.0,0.00033802,30]
[423171371,1779901843000,-228.53078202,0.00033781,7]
[423171366,1779901843000,-352.97,0.000335,7]
[423171369,1779901843000,-372.0,0.0003378,30]
[423171362,1779901843000,-564.58262352,0.00033052,3]
[423171361,1779901843000,-350.0,0.00033014,5]
[423171372,1779901843000,-324.0,0.00033802,30]
[423171363,1779901843000,-1500.0,0.000334,7]
[423171367,1779901843000,-245.0,0.00033774,30]
[423171370,1779901843000,-194.0,0.0003378,30]
[423171364,1779901843000,-150.0,0.00033451,2]
[423171375,1779901843000,-531.0,0.00033802,30]
[423171378,1779901843000,-212.0,0.00033803,30]
[423171377,1779901843000,-183.0,0.00033803,30]
[423171379,1779901843000,-498.0,0.00033803,30]
[423171380,1779901843000,-352.0,0.00033803,30]
[423171317,1779901843000,-500.0,0.00032192,2]
[423171382,1779901843000,-1222.0,0.00033803,30]
[423171384,1779901843000,-1804.09849183,0.000339,120]
[423171381,1779901843000,-313.0,0.00033803,30]
[423171350,1779901843000,-945.96681288,0.00033,120]
[423171347,1779901843000,-163.81,0.000329,30]
[423171383,1779901843000,-874.71067795,0.000339,120]
[423171358,1779901843000,-205.77743576,0.00033,120]
[423171359,1779901843000,-180.73259399,0.00033,120]
[423171318,1779901843000,-1373.3,0.0003221,5]
[423171335,1779901843000,-316.0,0.00032802,30]
[423171336,1779901843000,-531.0,0.00032802,30]
[423171326,1779901843000,-2212.04,0.00032447,14]
[423171324,1779901843000,-2867.416,0.00032438,32]
[423171328,1779901843000,-150.0,0.00032702,2]
[423171327,1779901843000,-285.0,0.00032702,2]
[423171330,1779901843000,-200.0,0.00032769,2]
[423171333,1779901843000,-194.0,0.0003278,30]
[423171334,1779901843000,-324.0,0.00032802,30]
[423171332,1779901843000,-372.0,0.0003278,30]
[423171331,1779901843000,-245.0,0.00032774,30]
[423171325,1779901843000,-191.303,0.00032438,32]
[423171337,1779901843000,-183.0,0.00032803,30]
[423171329,1779901843000,-239.0,0.00032702,2]
[423171348,1779901843000,-874.71067795,0.00033,120]
[423171344,1779901843000,-1940.36,0.00032877,30]
[423171343,1779901843000,-281.31,0.00032877,2]
[423171345,1779901843000,-840.0,0.00032877,30]
[423171349,1779901843000,-1804.09849183,0.00033,120]
[423171341,1779901843000,-313.0,0.00032803,30]
[423171338,1779901843000,-212.0,0.00032803,30]
[423171342,1779901843000,-1222.0,0.00032803,30]
[423171351,1779901843000,-200.79846749,0.00033,120]
[423171346,1779901843000,-150.0,0.00032877,2]
[423171340,1779901843000,-352.0,0.00032803,30]
[423171339,1779901843000,-498.0,0.00032803,30]
[423171404,1779901844000,-500.0,0.00034178,2]
[423171420,1779901844000,-150.0,0.00034178,2]
[423171406,1779901844000,-500.0,0.00034178,2]
[423171416,1779901844000,-500.0,0.00034178,2]
[423171418,1779901844000,-622.5845227,0.00034178,2]
[423171426,1779901844000,-218.39893225,0.00034178,2]
[423171415,1779901844000,-500.0,0.00034178,2]
[423171419,1779901844000,-150.0,0.00034178,2]
[423171421,1779901844000,-500.0,0.00034178,2]
[423171424,1779901844000,-500.0,0.00034178,2]
[423171417,1779901844000,-500.0,0.00034178,2]
[423171427,1779901844000,-500.0,0.00034178,2]
[423171422,1779901844000,-500.0,0.00034178,2]
[423171425,1779901844000,-500.0,0.00034178,2]
[423171428,1779901844000,-500.0,0.00034178,2]
[423171439,1779901844000,-150.0,0.00034178,2]
[423171429,1779901844000,-500.0,0.00034178,2]
[423171432,1779901844000,-150.0,0.00034178,2]
[423171438,1779901844000,-500.0,0.00034178,2]
[423171430,1779901844000,-500.0,0.00034178,2]
[423171431,1779901844000,-500.0,0.00034178,2]
[423171436,1779901844000,-150.0,0.00034178,2]
[423171410,1779901844000,-500.0,0.00034178,2]
[423171423,1779901844000,-171.50846167,0.00034178,2]
[423171411,1779901844000,-150.0,0.00034178,2]
[423171395,1779901844000,-20679.63668616,0.00034143,2]
[423171408,1779901844000,-500.0,0.00034178,2]
[423171434,1779901844000,-500.0,0.00034178,2]
[423171388,1779901844000,-282.02695724,0.000339,120]
[423171386,1779901844000,-945.96681288,0.000339,120]
[423171387,1779901844000,-200.79846749,0.000339,120]
[423171385,1779901844000,-208.97895572,0.000339,120]
[423171389,1779901844000,-283.91208686,0.000339,120]
[423171391,1779901844000,-207.28396013,0.000339,120]
[423171393,1779901844000,-350.0,0.00033973,5]
[423171390,1779901844000,-185.88478102,0.000339,120]
[423171392,1779901844000,-205.77743576,0.000339,120]
[423171398,1779901844000,-150.0,0.00034178,2]
[423171409,1779901844000,-478.92004117,0.00034178,2]
[423171397,1779901844000,-150.0,0.00034178,2]
[423171396,1779901844000,-272.87,0.00034172,30]
[423171394,1779901844000,-502.94,0.00033986,14]
[423171399,1779901844000,-245.00898,0.00034178,2]
[423171400,1779901844000,-267.88170662,0.00034178,2]
[423171403,1779901844000,-500.0,0.00034178,2]
[423171412,1779901844000,-500.0,0.00034178,2]
[423171413,1779901844000,-500.0,0.00034178,2]
[423171414,1779901844000,-150.0,0.00034178,2]
[423171402,1779901844000,-500.0,0.00034178,2]
[423171405,1779901844000,-500.0,0.00034178,2]
[423171407,1779901844000,-500.0,0.00034178,2]
[423171401,1779901844000,-500.0,0.00034178,2]
[423171435,1779901844000,-164.66146701,0.00034178,2]
[423171433,1779901844000,-500.0,0.00034178,2]
[423171441,1779901844000,-500.0,0.00034178,2]
[423171469,1779901844000,-500.0,0.00034178,2]
[423171470,1779901844000,-489.0,0.00034178,2]
[423171475,1779901844000,-500.0,0.00034178,2]
[423171476,1779901844000,-500.0,0.00034178,2]
[423171474,1779901844000,-489.0,0.00034178,2]
[423171472,1779901844000,-500.0,0.00034178,2]
[423171471,1779901844000,-500.0,0.00034178,2]
[423171473,1779901844000,-500.0,0.00034178,2]
[423171477,1779901844000,-489.0,0.00034178,2]
[423171481,1779901844000,-489.0,0.00034178,2]
[423171480,1779901844000,-500.0,0.00034178,2]
[423171467,1779901844000,-158.10865426,0.00034178,2]
[423171482,1779901844000,-500.0,0.00034178,2]
[423171483,1779901844000,-489.0,0.00034178,2]
[423171487,1779901844000,-500.0,0.00034178,2]
[423171484,1779901844000,-500.0,0.00034178,2]
[423171485,1779901844000,-500.0,0.00034178,2]
[423171486,1779901844000,-489.0,0.00034178,2]
[423171489,1779901844000,-500.0,0.00034178,2]
[423171488,1779901844000,-150.0,0.00034178,2]
[423171490,1779901844000,-500.0,0.00034178,2]
[423171492,1779901844000,-150.0,0.00034178,2]
[423171491,1779901844000,-489.0,0.00034178,2]
[423171437,1779901844000,-500.0,0.00034178,2]
[423171478,1779901844000,-500.0,0.00034178,2]
[423171468,1779901844000,-489.0,0.00034178,2]
[423171479,1779901844000,-489.0,0.00034178,2]
[423171466,1779901844000,-500.0,0.00034178,2]
[423171464,1779901844000,-150.0,0.00034178,2]
[423171451,1779901844000,-500.0,0.00034178,2]
[423171440,1779901844000,-414.75105378,0.00034178,2]
[423171446,1779901844000,-500.0,0.00034178,2]
[423171448,1779901844000,-267.19449444,0.00034178,2]
[423171447,1779901844000,-489.0,0.00034178,2]
[423171442,1779901844000,-180.65416299,0.00034178,2]
[423171443,1779901844000,-172.95795463,0.00034178,2]
[423171444,1779901844000,-500.0,0.00034178,2]
[423171445,1779901844000,-500.0,0.00034178,2]
[423171449,1779901844000,-500.0,0.00034178,2]
[423171450,1779901844000,-489.0,0.00034178,2]
[423171453,1779901844000,-500.0,0.00034178,2]
[423171493,1779901844000,-500.0,0.00034178,2]
[423171454,1779901844000,-500.0,0.00034178,120]
[423171465,1779901844000,-489.0,0.00034178,2]
[423171457,1779901844000,-500.0,0.00034178,120]
[423171455,1779901844000,-489.0,0.00034178,2]
[423171460,1779901844000,-150.0,0.00034178,2]
[423171458,1779901844000,-489.0,0.00034178,2]
[423171463,1779901844000,-500.0,0.00034178,2]
[423171459,1779901844000,-500.0,0.00034178,2]
[423171452,1779901844000,-489.0,0.00034178,2]
[423171456,1779901844000,-500.0,0.00034178,2]
[423171461,1779901844000,-500.0,0.00034178,120]
[423171462,1779901844000,-489.0,0.00034178,2]
[423171532,1779901845000,-500.0,0.00034178,2]
[423171530,1779901845000,-500.0,0.00034178,2]
[423171531,1779901845000,-500.0,0.00034178,2]
[423171533,1779901845000,-500.0,0.00034178,2]
[423171526,1779901845000,-500.0,0.00034178,2]
[423171525,1779901845000,-500.0,0.00034178,2]
[423171527,1779901845000,-500.0,0.00034178,2]
[423171529,1779901845000,-175.31166964,0.00034178,2]
[423171534,1779901845000,-492.0,0.00034178,2]
[423171546,1779901845000,-492.0,0.00034178,2]
[423171523,1779901845000,-500.0,0.00034178,2]
[423171528,1779901845000,-500.0,0.00034178,2]
[423171537,1779901845000,-492.0,0.00034178,2]
[423171539,1779901845000,-492.0,0.00034178,2]
[423171547,1779901845000,-500.0,0.00034178,2]
[423171542,1779901845000,-500.0,0.00034178,2]
[423171543,1779901845000,-492.0,0.00034178,2]
[423171541,1779901845000,-492.0,0.00034178,2]
[423171536,1779901845000,-500.0,0.00034178,2]
[423171545,1779901845000,-500.0,0.00034178,2]
[423171544,1779901845000,-492.0,0.00034178,2]
[423171540,1779901845000,-500.0,0.00034178,2]
[423171538,1779901845000,-500.0,0.00034178,2]
[423171549,1779901845000,-500.83413808,0.00034178,2]
[423171551,1779901845000,-492.0,0.00034178,2]
[423171554,1779901845000,-492.0,0.00034178,2]
[423171548,1779901845000,-492.0,0.00034178,2]
[423171524,1779901845000,-500.0,0.00034178,2]
[423171498,1779901845000,-340.01726706,0.00034178,2]
[423171521,1779901845000,-172.02329996,0.00034178,2]
[423171494,1779901845000,-500.0,0.00034178,2]
[423171496,1779901845000,-150.0,0.00034178,2]
[423171553,1779901845000,-492.0,0.00034178,2]